bitfinex/quotes_BTCUSD_20250303
["timestamp","ask_amount","ask_price","bid_price","bid_amount"]
[1741031710723,0.5,86178.0,86073.0,0.35490678]
[1741031710724,0.39999999,86129.0,86073.0,0.35289386]
[1741031711138,0.137534,86128.0,86079.0,0.1]
[1741031711391,0.0331677,86078.0,86073.0,0.25333083]
[1741031711861,0.0331677,86078.0,86073.0,0.24093733]
[1741031712414,0.232358,86074.0,86073.0,0.24097733]
[1741031712623,0.95125357,86074.0,86073.0,0.23442955]
[1741031712791,0.693163,86074.0,86073.0,0.22792224]
[1741031712987,0.232358,86074.0,86073.0,0.12915901]
[1741031713201,0.232358,86074.0,86073.0,0.07380902]
[1741031713403,0.2505771,86074.0,86073.0,0.07384902]
[1741031713603,0.2505771,86074.0,86073.0,0.07388902]
[1741031713804,0.00858922,86074.0,86073.0,0.07388902]
[1741031714043,0.02941547,86077.0,86073.0,0.03292589]
[1741031714250,0.26177347,86074.0,86073.0,0.03292589]
[1741031714460,0.02941547,86074.0,86073.0,0.03292589]
[1741031714736,0.1,86135.0,86073.0,0.03292589]
[1741031715079,0.1,86163.0,86100.0,0.0462]
[1741031715212,0.1,86150.0,86128.0,0.09993943]
[1741031715421,0.1,86150.0,86101.0,0.39671394]
[1741031715422,0.1,86150.0,86090.0,0.48518549]
[1741031715629,0.1,86150.0,86083.0,0.0829]
[1741031715630,0.1,86150.0,86100.0,0.01719999]
[1741031715826,0.232104,86169.0,86111.0,0.09993943]
[1741031716054,0.23215,86152.0,86111.0,0.232255]
[1741031716255,0.02412651,86183.0,86106.0,0.09993943]
[1741031716455,0.00011951,86150.0,86100.0,0.50238548]
[1741031716639,0.00011951,86150.0,86149.0,0.232155]
[1741031716851,0.015549,86183.0,86165.0,0.232112]
[1741031717421,0.015549,86183.0,86131.0,0.09993943]
[1741031717628,0.015549,86183.0,86137.0,0.01828394]
[1741031717786,0.015549,86183.0,86165.0,0.1]
[1741031717987,0.232082,86177.0,86165.0,0.1]
[1741031718188,0.1,86163.0,86114.0,0.1]
[1741031718389,0.1,86146.0,86101.0,0.09]
[1741031718589,0.232247,86116.0,86091.0,0.09]
[1741031718790,0.3,86114.0,86073.0,0.03252892]
[1741031719003,0.3,86112.0,86073.0,4e-05]
[1741031719178,0.3,86112.0,86060.0,0.01555]
[1741031719179,0.532309,86092.0,86091.0,0.00039697]
[1741031719585,0.532393,86061.0,86060.0,0.01555]
[1741031719787,0.53279063,86061.0,86060.0,0.01555]
[1741031719989,0.3,86060.0,86026.0,0.005]
[1741031720190,0.00039763,86061.0,86026.0,0.005]
[1741031720567,0.00496424,86053.0,86025.0,0.00720178]
[1741031720752,0.00492424,86053.0,86025.0,0.00694052]
[1741031720961,0.2,86119.0,86025.0,0.00694052]
[1741031720962,0.29430187,86060.0,86025.0,0.00694052]
[1741031721192,1.076106,86059.0,86010.0,0.04955141]
[1741031721374,0.3,86057.0,86025.0,0.00039763]
[1741031721588,0.06190587,86052.0,86025.0,0.00039763]
[1741031721787,0.188154,86051.0,86025.0,0.00039763]
[1741031722033,0.06190587,86052.0,86025.0,0.00039763]
[1741031722034,0.48157893,86050.0,86025.0,0.00039763]
[1741031722304,0.06190587,86052.0,86025.0,0.00039763]
[1741031722515,0.48518549,86090.0,86000.0,2.29371492]
[1741031722516,0.48518549,86020.0,86000.0,1.68114206]
[1741031722957,0.02061811,86049.0,86000.0,1.68114206]
[1741031722958,0.00867382,86048.0,86025.0,4e-05]
[1741031723203,0.232486,86027.0,86025.0,4e-05]
[1741031723455,0.0766,86069.0,86025.0,4e-05]
[1741031723456,0.09828876,86047.0,86025.0,4e-05]
[1741031723647,0.09828876,86047.0,86045.0,0.232436]
[1741031724125,0.09828876,86047.0,86025.0,0.10005943]
[1741031724126,0.09828876,86047.0,86025.0,8e-05]
[1741031724601,0.03298527,86033.0,86025.0,8e-05]
[1741031724845,0.232555,86001.0,86000.0,1.08700865]
[1741031725080,1.483364,86005.0,86000.0,1.08700865]
[1741031725319,0.48518549,86020.0,86000.0,1.08700865]
[1741031725545,0.332555,86001.0,86000.0,0.4838032]
[1741031725790,0.632566,85997.0,85995.0,0.0105]
[1741031725988,0.1,85987.0,85986.0,0.01264189]
[1741031726511,0.1,85982.0,85937.0,0.248277]
[1741031726771,0.00039714,85997.0,85955.0,0.11552943]
[1741031727020,0.00039714,85997.0,85996.0,0.39997943]
[1741031727223,0.00039714,85997.0,85987.0,0.56688549]
[1741031727224,0.1,86016.0,86015.0,0.63249643]
[1741031727426,0.00882785,86048.0,86009.0,0.48518549]
[1741031727427,0.1,86010.0,86009.0,0.48518549]
[1741031727629,0.1,86026.0,86019.0,0.09997943]
[1741031727841,0.1,86026.0,85987.0,0.0817]
[1741031727842,0.1,86031.0,86030.0,0.33245643]
[1741031728047,0.2,86111.0,86017.0,0.05]
[1741031728048,0.1,86052.0,86039.0,0.09997943]
[1741031728202,0.1,86061.0,86050.0,0.48518549]
[1741031728420,0.464312,86149.0,86050.0,0.48518549]
[1741031728421,0.1,86079.0,86059.0,0.232396]
[1741031728645,0.1,86079.0,86067.0,0.3]
[1741031728849,0.1,86088.0,86087.0,0.32530243]
[1741031729018,0.9078588,86132.0,86095.0,0.33228043]
[1741031729418,0.03300961,86097.0,86095.0,0.07969014]
[1741031729626,0.03300961,86097.0,86086.0,0.48518549]
[1741031729892,0.66382349,86132.0,86105.0,0.232273]
[1741031730138,0.64430174,86132.0,86130.0,0.232204]
[1741031730363,0.64469961,86132.0,86130.0,0.232204]
[1741031730622,0.11526661,86132.0,86131.0,0.3696633]
[1741031730898,0.62299936,86215.0,86153.0,0.3]
[1741031731104,0.51087136,86215.0,86196.0,0.48518549]
[1741031731313,0.51099081,86215.0,86197.0,0.04851855]
[1741031731522,0.00011945,86215.0,86197.0,0.04851855]
[1741031731734,0.00011945,86215.0,86197.0,0.34851855]
[1741031731914,0.00011945,86215.0,86198.0,0.44807943]
[1741031732145,0.00011945,86215.0,86200.0,0.09997943]
[1741031732371,0.00011945,86215.0,86198.0,0.0481]
[1741031732372,0.0003404,86237.0,86210.0,0.09997943]
[1741031732575,0.0003404,86237.0,86226.0,0.48518549]
[1741031733015,0.0159468,86236.0,86220.0,0.48518549]
[1741031733235,0.0181808,86234.0,86220.0,0.48518549]
[1741031733447,0.0181808,86234.0,86201.0,0.09817835]
[1741031733665,0.3,86232.0,86184.0,0.1]
[1741031733919,0.3,86232.0,86126.0,0.05]
[1741031733920,0.4,86230.0,86171.0,0.1]
[1741031734142,0.4,86230.0,86160.0,0.48518549]
[1741031734143,1.847663,86229.0,86160.0,0.48518549]
[1741031734357,1.700226,86228.0,86144.0,0.0474]
[1741031734577,0.01819013,86214.0,86144.0,0.0474]
[1741031734793,0.232081,86177.0,86166.0,0.0159478]
[1741031735025,0.332193,86176.0,86166.0,0.0159478]
[1741031735238,0.532107,86167.0,86166.0,0.00885024]
[1741031735464,0.869708,86167.0,86166.0,0.00885024]
[1741031735674,0.232155,86149.0,86148.0,0.01240024]
[1741031735877,0.03879388,86167.0,86148.0,0.01251969]
[1741031736246,0.02059554,86167.0,86148.0,0.01251969]
[1741031736815,0.0791,86229.0,86160.0,0.39997943]
[1741031736996,5.4e-07,86183.0,86182.0,0.09997943]
[1741031737199,0.0087428,86281.0,86236.0,0.231921]
[1741031737636,0.231854,86261.0,86220.0,0.0484]
[1741031737878,0.231839,86267.0,86219.0,0.18456]
[1741031738082,0.48518549,86280.0,86219.0,0.18456]
[1741031738283,0.0007382,86237.0,86227.0,0.231943]
[1741031738595,0.0007382,86237.0,86228.0,0.0231943]
[1741031738882,0.48518549,86270.0,86219.0,0.18456]
[1741031739091,0.1,86248.0,86201.0,0.01555]
[1741031739300,0.232012,86203.0,86201.0,0.01555]
[1741031739500,0.452019,86202.0,86201.0,0.01555]
[1741031739710,1.097141,86202.0,86162.0,0.00497943]
[1741031739912,1.097141,86202.0,86120.0,0.48535579]
[1741031739913,0.232061,86184.0,86134.0,0.00497943]
[1741031740116,0.232107,86167.0,86166.0,0.00161136]
[1741031740332,0.232107,86167.0,86120.0,0.0001703]
[1741031740333,0.232155,86149.0,86120.0,0.0001703]
[1741031740534,0.232201,86132.0,86120.0,0.0001703]
[1741031740736,0.48518549,86160.0,86113.0,0.01555]
[1741031740737,0.23225,86114.0,86113.0,0.00227029]
[1741031740945,0.232297,86097.0,86036.0,0.00497943]
[1741031741150,1.911441,86096.0,86095.0,0.01594787]
[1741031741424,0.234876,86096.0,86095.0,0.01594787]
[1741031741626,0.234876,86096.0,86095.0,8.7e-07]
[1741031741627,0.72307167,86096.0,86095.0,8.7e-07]
[1741031741847,0.72307167,86096.0,86033.0,0.00017]
[1741031741848,0.3,86078.0,86033.0,0.00017]
[1741031742055,0.3,86061.0,86060.0,0.0072558]
[1741031742283,0.218257,86061.0,86060.0,0.0072558]
[1741031742494,0.359721,86061.0,86060.0,0.0072558]
[1741031742697,0.3,86054.0,86025.0,0.00441514]
[1741031742920,0.232487,86027.0,86025.0,0.00441514]
[1741031743150,0.1125,86026.0,86025.0,0.00441514]
[1741031743359,0.247945,86061.0,86025.0,0.00441514]
[1741031743592,0.232487,86026.0,86025.0,0.00453459]
[1741031743799,0.232487,86026.0,86008.0,0.01572]
[1741031743800,0.232533,86009.0,86008.0,0.01572]
[1741031744010,0.10880419,86026.0,86008.0,0.01572]
[1741031744347,0.232531,86010.0,86008.0,0.01583951]
[1741031744544,0.232555,86001.0,86000.0,5e-05]
[1741031744742,0.44271029,86009.0,86000.0,5e-05]
[1741031744743,0.10880419,86009.0,86000.0,5e-05]
[1741031744991,0.232555,86001.0,86000.0,5e-05]
[1741031745195,0.721329,86001.0,86000.0,5e-05]
[1741031745396,0.232631,85973.0,85972.0,0.01565]
[1741031745738,0.10880419,86001.0,85955.0,0.00902463]
[1741031745938,0.01088042,86000.0,85955.0,0.00902463]
[1741031746160,0.16620742,86000.0,85955.0,0.00902463]
[1741031746377,0.10880419,86000.0,85955.0,0.00902463]
[1741031746807,0.10892312,86000.0,85958.0,0.1]
[1741031747017,0.10892312,86000.0,85955.0,0.00902463]
[1741031747018,0.10892312,86000.0,85970.0,0.1]
[1741031747433,0.10892312,86000.0,85999.0,0.23256]
[1741031747667,0.1,86100.0,86010.0,0.5317921]
[1741031747878,0.87850202,86078.0,86035.0,0.1]
[1741031748095,3.1e-07,86046.0,86045.0,0.332436]
[1741031748304,0.87850202,86089.0,86088.0,0.23232]
[1741031748744,0.87890014,86089.0,86088.0,0.23232]
[1741031749000,0.22860999,86089.0,86088.0,0.03405448]
[1741031749207,0.22860999,86089.0,86088.0,0.255552]
[1741031749411,0.10050999,86089.0,86088.0,0.6661002]
[1741031749616,0.015549,86148.0,86112.0,0.232255]
[1741031749822,0.015549,86148.0,86112.0,0.2554805]
[1741031750032,0.01566841,86113.0,86112.0,0.2554805]
[1741031750238,0.01566841,86113.0,86112.0,0.03359777]
[1741031750498,0.01566841,86113.0,86112.0,0.01037227]
[1741031750732,0.01566841,86113.0,86112.0,0.00662609]
[1741031751132,0.01566841,86113.0,86060.0,0.5317921]
[1741031751343,0.01566841,86113.0,86112.0,0.00662609]
[1741031751344,0.02129614,86113.0,86112.0,0.00662609]
[1741031751564,0.01566841,86113.0,86075.0,0.232354]
[1741031751766,0.01566841,86113.0,86060.0,0.5317921]
[1741031751767,0.01566841,86113.0,86112.0,0.00662609]
[1741031751965,0.01566841,86113.0,86111.0,0.232257]
[1741031752184,0.01566841,86113.0,86112.0,0.23888109]
[1741031752389,0.01566841,86113.0,86112.0,0.00662609]
[1741031752772,0.01566841,86113.0,86030.0,0.5317921]
[1741031752773,0.00562773,86098.0,86030.0,0.5317921]
[1741031752984,0.19325641,86113.0,86000.0,0.0501706]
[1741031752985,0.00557773,86074.0,86037.0,0.018472]
[1741031753117,0.00557773,86073.0,86037.0,0.02509809]
[1741031753318,0.00557773,86048.0,86037.0,0.00662609]
[1741031753652,0.05836734,86094.0,86037.0,0.00662609]
[1741031753653,0.00557773,86041.0,86037.0,0.00662609]
[1741031753914,0.01822088,86046.0,86000.0,0.0001706]
[1741031754091,0.00557773,86025.0,86000.0,0.0001706]
[1741031754269,0.232514,86017.0,86009.0,0.00662609]
[1741031754595,0.00557773,86012.0,86000.0,0.0001706]
[1741031754822,0.00557773,86063.0,86008.0,0.01594812]
[1741031755024,0.01822399,86016.0,86009.0,0.00662609]
[1741031755231,0.05257773,86080.0,86015.0,0.09442227]
[1741031755431,0.05257773,86080.0,86009.0,0.00662609]
[1741031755432,0.23244,86044.0,86009.0,0.00662609]
[1741031755547,0.00557773,86048.0,86016.0,0.00684218]
[1741031755749,0.00557773,86064.0,86008.0,0.01594812]
[1741031755981,0.047,86080.0,86008.0,0.01594812]
[1741031755982,0.00557773,86071.0,86010.0,0.5317921]
[1741031756184,0.232451,86040.0,86009.0,0.00704733]
[1741031756388,0.00557773,86033.0,86011.0,0.00695354]
[1741031756651,0.00557773,86056.0,86009.0,0.232533]
[1741031756814,0.00557773,86058.0,86010.0,0.03064179]
[1741031756990,0.00557773,86060.0,86010.0,0.00579368]
[1741031757208,0.015948,86070.0,86010.0,0.00579368]
[1741031757408,0.232387,86064.0,86010.0,0.53758578]
[1741031757748,0.034978,86078.0,86020.0,0.5317921]
[1741031758085,0.047,86080.0,86020.0,0.5317921]
[1741031758086,0.047,86080.0,86031.0,0.09442227]
[1741031758288,0.0455,86112.0,86047.0,0.09442227]
[1741031758487,0.034964,86105.0,86040.0,0.5317921]
[1741031758688,0.00557773,86109.0,86040.0,0.5317921]
[1741031758689,0.00557773,86109.0,86072.0,0.232362]
[1741031758951,0.00557773,86109.0,86036.0,0.09442227]
[1741031758952,0.034963,86108.0,86060.0,0.5317921]
[1741031759093,0.00557773,86105.0,86073.0,0.00579368]
[1741031759296,0.0455,86112.0,86032.0,0.10944223]
[1741031759297,0.00557773,86088.0,86032.0,0.00944223]
[1741031759510,0.00557773,86102.0,86040.0,0.5317921]
[1741031759717,0.04054873,86111.0,86060.0,0.5317921]
[1741031759974,0.04561941,86112.0,86040.0,0.5317921]
[1741031760151,0.00557773,86106.0,86061.0,0.00579368]
[1741031760401,0.04561941,86112.0,86070.0,0.5317921]
[1741031760571,0.015549,86096.0,86072.0,0.09442227]
[1741031760750,0.015549,86096.0,86071.0,0.02787489]
[1741031760987,0.165549,86096.0,86052.0,0.18468]
[1741031761203,0.015549,86096.0,86094.0,0.232304]
[1741031761431,0.015549,86096.0,86095.0,0.00557974]
[1741031761676,0.015549,86096.0,86094.0,0.232302]
[1741031761888,0.015549,86096.0,86095.0,0.00557974]
[1741031762075,4.1e-07,86113.0,86112.0,0.232255]
[1741031762307,0.015549,86131.0,86118.0,0.232239]
[1741031762308,4.1e-07,86131.0,86118.0,0.232239]
[1741031762631,4.1e-07,86131.0,86112.0,0.00557974]
[1741031762834,4.1e-07,86131.0,86103.0,0.5317921]
[1741031763038,4.1e-07,86131.0,86095.0,0.00011941]
[1741031763039,0.15,86126.0,86095.0,0.00011941]
[1741031763241,0.15,86109.0,86095.0,0.00011941]
[1741031763393,0.0003412,86112.0,86095.0,0.00011941]
[1741031763600,0.15,86096.0,86095.0,0.00011941]
[1741031763851,0.15,86060.0,86042.0,0.07637616]
[1741031764046,0.15,86053.0,86042.0,0.07637616]
[1741031764305,0.15,86078.0,86042.0,0.07637616]
[1741031764483,0.15,86075.0,86042.0,0.07637616]
[1741031764656,0.05,86066.0,86026.0,0.232486]
[1741031764857,0.68242,86051.0,86000.0,0.0001706]
[1741031765058,0.15,86026.0,86009.0,0.06985648]
[1741031765283,0.15,86026.0,86007.0,0.06985648]
[1741031765637,0.4982,86026.0,86025.0,0.01594812]
[1741031765838,0.682533,86009.0,86000.0,0.0001706]
[1741031766048,0.382582,85991.0,85990.0,0.01782059]
[1741031766336,0.15,85991.0,85990.0,0.01794012]
[1741031766528,0.1499,85997.0,85990.0,0.01794012]
[1741031766757,0.03014352,85998.0,85990.0,0.01794012]
[1741031766941,0.03014352,85993.0,85990.0,0.01794012]
[1741031767150,0.03014352,86001.0,86000.0,0.232558]
[1741031767353,0.01194963,86051.0,85991.0,0.00574641]
[1741031767354,0.03014352,86019.0,85991.0,0.00574641]
[1741031767565,0.03014352,86019.0,85990.0,0.01794012]
[1741031767775,0.01194963,86051.0,85992.0,0.00574641]
[1741031768019,0.01194963,86051.0,86000.0,0.5317921]
[1741031768207,0.03014352,86066.0,86040.0,0.5317921]
[1741031768329,0.03014352,86066.0,86001.0,0.161383]
[1741031768330,0.0454,86120.0,86095.0,0.232301]
[1741031768737,0.034951,86130.0,86095.0,0.23804741]
[1741031768985,0.0488,86154.0,86111.0,0.232258]
[1741031769228,0.1,86221.0,86102.0,0.232281]
[1741031769229,0.015549,86163.0,86130.0,0.232207]
[1741031769383,0.88803696,86176.0,86147.0,0.232161]
[1741031769555,0.88803696,86176.0,86164.0,0.23103809]
[1741031770011,5.7e-07,86167.0,86166.0,0.23211]
[1741031770179,0.85304089,86176.0,86175.0,0.232085]
[1741031770382,8.2e-07,86176.0,86175.0,0.532085]
[1741031770579,0.0155671,86222.0,86172.0,0.232091]
[1741031770580,8.2e-07,86183.0,86182.0,0.232067]
[1741031771046,1e-08,86201.0,86170.0,0.5317921]
[1741031771199,0.0499,86194.0,86174.0,0.232088]
[1741031771362,0.0499,86194.0,86169.0,0.09999948]
[1741031771577,1e-08,86201.0,86200.0,0.232018]
[1741031771837,1e-08,86201.0,86170.0,0.5317921]
[1741031772040,0.1499,86194.0,86163.0,0.232115]
[1741031772241,1e-08,86201.0,86157.0,0.09999948]
[1741031772442,0.1499,86185.0,86166.0,0.1211]
[1741031772644,0.1499,86166.0,86157.0,0.09999948]
[1741031772850,0.1,86194.0,86156.0,0.09999948]
[1741031773072,0.0496,86196.0,86151.0,0.00039837]
[1741031773278,0.0496,86196.0,86157.0,0.232132]
[1741031773475,0.0496,86196.0,86151.0,0.00039837]
[1741031773677,0.0471,86152.0,86095.0,0.01555]
[1741031773883,0.0752,86128.0,86095.0,0.01555]
[1741031774095,0.0752,86128.0,86102.0,0.09999948]
[1741031774309,0.0752,86128.0,86095.0,0.01555]
[1741031775074,0.0475,86114.0,86095.0,0.01555]
[1741031775277,0.232298,86097.0,86095.0,0.01555]
[1741031775448,0.3,86096.0,86095.0,0.01555]
[1741031775648,0.3,86096.0,86095.0,0.01055]
[1741031775968,0.0475,86114.0,86095.0,0.01055]
[1741031776109,0.0475,86114.0,86068.0,0.232373]
[1741031776110,0.21362101,86122.0,86060.0,0.01282654]
[1741031776311,0.07559756,86128.0,86060.0,0.01282654]
[1741031776539,0.07559756,86128.0,86063.0,0.1]
[1741031776771,0.00039756,86128.0,86127.0,0.22784967]
[1741031777126,0.00039756,86128.0,86118.0,0.3]
[1741031777127,0.034939,86152.0,86124.0,0.1]
[1741031777328,0.015549,86166.0,86137.0,0.09857914]
[1741031777529,0.015549,86166.0,86165.0,0.232112]
[1741031777728,0.015549,86166.0,86119.0,0.03417708]
[1741031777930,0.015549,86166.0,86141.0,0.09999948]
[1741031778175,0.015549,86166.0,86119.0,0.03417708]
[1741031778349,0.00142086,86159.0,86124.0,0.00011945]
[1741031778552,0.015549,86166.0,86124.0,0.00011945]
[1741031778553,0.01696986,86166.0,86124.0,0.00011945]
[1741031778754,0.00142086,86143.0,86124.0,0.00011945]
[1741031778953,0.015549,86166.0,86104.0,0.03417708]
[1741031778954,0.00142086,86126.0,86120.0,0.232233]
[1741031779234,0.015549,86166.0,86104.0,0.03417708]
[1741031779235,0.29983086,86156.0,86104.0,0.03417708]
[1741031779457,0.015549,86166.0,86104.0,0.03417708]
[1741031779660,0.015549,86166.0,86165.0,0.232112]
[1741031779837,0.034922,86195.0,86182.0,0.532067]
[1741031780037,0.01589001,86201.0,86182.0,0.532067]
[1741031780444,0.01589001,86201.0,86175.0,0.18448]
[1741031781430,0.01589001,86201.0,86200.0,0.232018]
[1741031781626,0.0085238,86222.0,86175.0,0.18448]
[1741031781867,0.00892185,86222.0,86200.0,70.0]
[1741031782343,0.00892185,86222.0,86210.0,0.231991]
[1741031782544,0.00892185,86222.0,86200.0,70.0]
[1741031783064,0.00892185,86222.0,86201.0,0.3]
[1741031783242,0.00892185,86222.0,86200.0,70.0]
[1741031784315,0.610015,86201.0,86200.0,69.7076923]
[1741031784472,0.378,86201.0,86200.0,69.67272544]
[1741031784673,0.078,86201.0,86200.0,69.67272544]
[1741031784900,0.339815,86201.0,86200.0,68.47716944]
[1741031785046,1.225091,86201.0,86200.0,67.24277325]
[1741031785420,5.51648451,86201.0,86200.0,64.81546565]
[1741031785671,4.86061713,86201.0,86200.0,63.98997051]
[1741031785878,1.16679687,86201.0,86200.0,63.97918377]
[1741031786095,1.24572455,86201.0,86200.0,62.48914027]
[1741031786295,0.89652782,86201.0,86200.0,60.97007645]
[1741031786444,0.86304175,86201.0,86200.0,55.16439696]
[1741031786652,2.5805169,86201.0,86200.0,52.79265124]
[1741031786827,2.47078326,86201.0,86200.0,48.76173478]
[1741031787071,2.52881552,86201.0,86200.0,45.13054347]
[1741031787275,2.55749387,86201.0,86200.0,41.28732022]
[1741031787471,2.51805357,86201.0,86200.0,32.29089646]
[1741031787675,2.51805357,86201.0,86200.0,26.79124808]
[1741031788051,2.78376925,86201.0,86200.0,24.68287974]
[1741031788257,2.8114673,86201.0,86200.0,21.25240337]
[1741031788429,2.40257357,86201.0,86200.0,17.70588581]
[1741031788631,2.83272346,86201.0,86200.0,17.29822981]
[1741031788863,1.13707797,86201.0,86200.0,15.95904694]
[1741031789066,1.07013361,86201.0,86200.0,15.84703292]
[1741031789281,0.332015,86201.0,86200.0,15.84703292]
[1741031789456,0.16972886,86201.0,86200.0,15.79454325]
[1741031789632,0.27968386,86201.0,86200.0,15.78436557]
[1741031789837,0.689947,86201.0,86200.0,15.3184531]
[1741031790176,1.020049,86201.0,86200.0,15.28024374]
[1741031790416,0.382015,86201.0,86200.0,15.28024374]
[1741031790629,0.09860606,86210.0,86200.0,15.25124373]
[1741031790987,0.09860606,86210.0,86200.0,15.2995404]
[1741031791164,0.0514516,86210.0,86200.0,15.2995404]
[1741031791370,0.1,86243.0,86200.0,15.2995404]
[1741031791701,0.0349,86248.0,86200.0,15.2995404]
[1741031792030,0.332,86207.0,86204.0,0.09999948]
[1741031792199,0.332,86207.0,86200.0,15.24279758]
[1741031792200,0.1,86201.0,86200.0,15.24279758]
[1741031792411,0.519465,86201.0,86200.0,15.24279758]
[1741031792614,0.529409,86201.0,86200.0,15.24279758]
[1741031792816,0.579409,86201.0,86200.0,12.3647722]
[1741031792995,0.4826643,86201.0,86200.0,10.29971296]
[1741031793184,4.38297204,86201.0,86200.0,10.24924257]
[1741031793378,4.35474256,86201.0,86200.0,9.04632125]
[1741031793581,1.04069656,86201.0,86200.0,3.10584293]
[1741031793778,0.58834985,86201.0,86200.0,1.99228186]
[1741031793981,1.34868348,86201.0,86200.0,0.14949868]
[1741031794194,0.1,86067.0,86022.0,0.09999948]
[1741031794487,1.05188006,86066.0,86033.0,0.0771]
[1741031794629,0.3,86023.0,86005.0,0.0812]
[1741031794843,0.72058038,86019.0,86005.0,0.0812]
[1741031795191,0.3,86013.0,85972.0,0.01555]
[1741031795396,0.72058038,86004.0,85972.0,0.01555]
[1741031795542,0.70270979,85987.0,85972.0,0.01555]
[1741031795748,0.3,85991.0,85964.0,0.0070433]
[1741031795948,0.70231223,85990.0,85964.0,0.00744044]
[1741031796298,0.0132,86076.0,85964.0,0.00744044]
[1741031796299,0.1,85993.0,85965.0,0.0466]
[1741031796504,0.1,85990.0,85965.0,0.0466]
[1741031796752,0.09459611,85996.0,85974.0,0.232626]
[1741031797049,0.1,86049.0,85975.0,0.0232626]
[1741031797264,0.1,86077.0,86011.0,0.00540389]
[1741031797455,0.118227,86063.0,85989.0,0.00534743]
[1741031797658,0.034996,86048.0,86012.0,0.00637045]
[1741031797860,0.1,86041.0,86021.0,0.00534743]
[1741031798119,0.034996,86048.0,86020.0,0.00534743]
[1741031798356,0.034996,86048.0,86009.0,0.00534743]
[1741031798521,0.034996,86048.0,85989.0,0.00534743]
[1741031798730,0.034996,86048.0,86020.0,0.00011945]
[1741031798871,0.018227,86063.0,86023.0,0.00534743]
[1741031799065,0.015549,86078.0,86026.0,0.00534743]
[1741031799274,0.034983,86066.0,86024.0,0.00534743]
[1741031799484,0.034983,86066.0,86022.0,0.0464]
[1741031799485,0.015549,86078.0,86044.0,0.00534743]
[1741031799742,0.015549,86078.0,86022.0,0.0464]
[1741031799743,0.015549,86078.0,86054.0,0.00534743]
[1741031800053,0.015549,86096.0,86062.0,0.3]
[1741031800244,0.015549,86096.0,86094.0,0.232302]
[1741031800473,0.01821414,86152.0,86097.0,0.232296]
[1741031800583,0.09465257,86180.0,86101.0,0.3]
[1741031800791,0.034963,86119.0,86118.0,0.00534743]
[1741031801030,0.01820245,86188.0,86130.0,0.00534743]
[1741031801230,0.01820245,86188.0,86110.0,0.0796]
[1741031801231,0.01820245,86188.0,86147.0,0.23750843]
[1741031801433,0.034934,86191.0,86147.0,0.00534743]
[1741031801635,0.01819696,86197.0,86148.0,0.1316]
[1741031801811,0.01819696,86197.0,86166.0,0.00534743]
[1741031802013,0.01819696,86197.0,86149.0,0.01369474]
[1741031802014,0.018197,86191.0,86159.0,0.00534743]
[1741031802245,0.01594705,86183.0,86180.0,0.00534743]
[1741031802444,0.85304942,86231.0,86167.0,0.00534743]
[1741031802669,0.09465257,86222.0,86151.0,0.15]
[1741031802888,0.85316883,86231.0,86161.0,0.15]
[1741031802889,0.034936,86188.0,86161.0,0.15]
[1741031803092,0.231991,86211.0,86159.0,0.00534743]
[1741031803396,0.85316883,86231.0,86160.0,0.0111566]
[1741031803397,0.94770199,86231.0,86160.0,0.0111566]
[1741031803530,0.034935,86210.0,86163.0,0.00534743]
[1741031803729,0.034935,86210.0,86163.0,0.15534743]
[1741031803972,0.034935,86210.0,86169.0,0.00534743]
[1741031804172,0.034935,86210.0,86164.0,0.02134391]
[1741031804173,0.03505434,86210.0,86203.0,0.0789]
[1741031804397,0.00011934,86210.0,86207.0,0.15]
[1741031804603,0.00011934,86210.0,86203.0,0.0789]
[1741031804604,0.00011934,86210.0,86209.0,0.15]
[1741031804784,0.00011934,86210.0,86209.0,0.00534743]
[1741031804992,0.00011934,86210.0,86209.0,0.03912134]
[1741031805194,0.00011934,86210.0,86209.0,0.00534743]
[1741031805363,0.00011934,86210.0,86209.0,0.00580917]
[1741031805564,0.00011934,86210.0,86203.0,0.05689999]
[1741031805770,0.00011934,86210.0,86209.0,0.00580917]
[1741031805996,0.00011934,86210.0,86207.0,5e-05]
[1741031806191,0.00011934,86210.0,86160.0,0.00534743]
[1741031806448,0.3,86193.0,86146.0,0.00534743]
[1741031806564,0.3,86166.0,86143.0,0.0465]
[1741031806768,0.3,86164.0,86131.0,0.02089743]
[1741031806966,0.3,86164.0,86131.0,0.01555]
[1741031807389,0.3,86162.0,86131.0,0.01555]
[1741031807599,0.532201,86132.0,86131.0,0.01555]
[1741031807796,0.3,86132.0,86131.0,0.01594805]
[1741031807996,0.647391,86132.0,86131.0,0.01594805]
[1741031808277,0.3,86132.0,86131.0,0.01594805]
[1741031809004,0.4174,86132.0,86131.0,0.01594805]
[1741031809250,0.4174,86132.0,86113.0,0.01555]
[1741031809251,0.53225,86114.0,86113.0,0.01555]
[1741031809467,0.31594805,86114.0,86113.0,0.01555]
[1741031809712,0.01594805,86114.0,86113.0,0.01555]
[1741031809915,0.00039756,86132.0,86113.0,0.01555]
[1741031810087,0.00039756,86132.0,86127.0,0.00534743]
[1741031810365,0.09465257,86197.0,86129.0,0.15]
[1741031810585,0.116319,86196.0,86142.0,0.00534743]
[1741031810834,0.00011934,86209.0,86157.0,0.15]
[1741031811048,0.00011934,86209.0,86128.0,0.01553474]
[1741031811049,0.132677,86208.0,86142.0,0.15534743]
[1741031811212,0.05847406,86206.0,86143.0,0.00534743]
[1741031811421,0.00011934,86209.0,86128.0,0.01553474]
[1741031811422,0.136915,86205.0,86150.0,0.15]
[1741031811654,0.00011934,86209.0,86169.0,0.00534743]
[1741031811870,0.00011934,86209.0,86170.0,0.08214743]
[1741031812177,0.142114,86208.0,86170.0,0.0768]
[1741031812303,0.231997,86208.0,86170.0,0.0768]
[1741031812645,0.112681,86207.0,86146.0,0.00534743]
[1741031812870,0.3,86207.0,86145.0,0.05]
[1741031813093,0.00011934,86209.0,86171.0,0.00534743]
[1741031813352,0.15317095,86207.0,86144.0,0.0761]
[1741031813575,0.00011934,86209.0,86145.0,0.15]
[1741031813796,0.00011934,86209.0,86161.0,0.15534743]
[1741031814008,0.00011934,86209.0,86166.0,0.00534743]
[1741031814229,0.00011934,86209.0,86172.0,0.08034743]
[1741031814444,0.00011934,86209.0,86175.0,0.08034743]